bitfinex/quotes_BTCUSD_20250206
["timestamp","ask_amount","ask_price","bid_price","bid_amount"]
[1738883599086,0.16702457,96850.0,96849.0,0.0001068]
[1738883599529,0.16702457,96850.0,96849.0,0.0021068]
[1738883601422,0.16602457,96850.0,96849.0,0.0001068]
[1738883601763,0.16702457,96850.0,96849.0,0.0001068]
[1738883602172,0.16602457,96850.0,96849.0,0.0001068]
[1738883602310,0.16802457,96850.0,96849.0,0.0001068]
[1738883603779,0.34602822,96850.0,96849.0,0.0001068]
[1738883603984,0.01314657,96850.0,96849.0,0.0001068]
[1738883604183,0.16802457,96850.0,96849.0,0.0001068]
[1738883604970,0.206509,96848.0,96831.0,0.048]
[1738883605171,0.154904,96834.0,96831.0,0.048]
[1738883605545,0.01127284,96833.0,96831.0,0.048]
[1738883605912,0.01127284,96833.0,96831.0,0.05964409]
[1738883606269,0.154897,96838.0,96831.0,0.05964409]
[1738883606477,0.001,96834.0,96831.0,0.06310474]
[1738883606891,0.01127284,96833.0,96831.0,0.06310474]
[1738883608149,0.01127284,96833.0,96831.0,0.06110474]
[1738883608511,0.154897,96839.0,96831.0,0.06010474]
[1738883608719,0.0112722,96832.0,96831.0,0.06010474]
[1738883608924,0.154883,96847.0,96831.0,0.06210474]
[1738883609132,0.154901,96836.0,96831.0,0.06210474]
[1738883609731,0.001,96833.0,96831.0,0.06310474]
[1738883610151,0.01126804,96832.0,96831.0,0.06110474]
[1738883610351,0.01126804,96832.0,96831.0,0.06210474]
[1738883610603,0.154907,96832.0,96831.0,0.06210474]
[1738883610945,0.001,96833.0,96831.0,0.06110474]
[1738883611146,0.001,96833.0,96831.0,0.06210474]
[1738883611147,0.16617568,96832.0,96831.0,0.06210474]
[1738883611347,0.154907,96832.0,96831.0,0.06110474]
[1738883611565,0.16617568,96832.0,96831.0,0.06110474]
[1738883611914,0.16617568,96832.0,96831.0,0.01310474]
[1738883612208,0.16617568,96832.0,96831.0,0.01210474]
[1738883612832,0.16617568,96832.0,96831.0,0.01410474]
[1738883613205,0.16617568,96832.0,96831.0,0.01210474]
[1738883613412,0.16717568,96832.0,96831.0,0.01410474]
[1738883613607,0.16717568,96832.0,96831.0,0.01610474]
[1738883614908,0.01226868,96832.0,96831.0,0.01610474]
[1738883617395,0.01226868,96832.0,96831.0,0.01621154]
[1738883617966,0.16717568,96832.0,96831.0,0.01621154]
[1738883618182,0.16717568,96832.0,96831.0,0.00456745]
[1738883619643,0.01226868,96832.0,96831.0,0.00456745]
[1738883620863,0.01226868,96832.0,96831.0,0.00256745]
[1738883621269,0.01226868,96832.0,96831.0,0.00356745]
[1738883621687,0.01226868,96832.0,96831.0,0.00256745]
[1738883622090,0.01226868,96832.0,96831.0,0.00356745]
[1738883622311,0.01126868,96832.0,96831.0,0.00156745]
[1738883622744,0.01126868,96832.0,96831.0,0.00356745]
[1738883623329,0.16617568,96832.0,96831.0,0.00356745]
[1738883623524,0.154907,96832.0,96831.0,0.00356745]
[1738883623803,0.16617807,96832.0,96831.0,0.00356745]
[1738883624164,0.01127107,96832.0,96831.0,0.00356745]
[1738883624535,0.154902,96836.0,96831.0,0.00356745]
[1738883625045,0.01127299,96835.0,96831.0,0.00565945]
[1738883625446,0.01127299,96835.0,96831.0,0.00365945]
[1738883625709,0.154901,96836.0,96831.0,0.00365945]
[1738883625942,0.01127235,96834.0,96831.0,0.00465945]
[1738883626099,0.01127299,96835.0,96831.0,0.00365945]
[1738883626288,0.01127171,96833.0,96831.0,0.00365945]
[1738883626489,0.154907,96832.0,96831.0,0.00565945]
[1738883626684,0.16617807,96832.0,96831.0,0.00565945]
[1738883627098,0.16617807,96832.0,96831.0,0.00465945]
[1738883627332,0.16617807,96832.0,96831.0,0.00265945]
[1738883627621,0.16617807,96832.0,96831.0,0.00365945]
[1738883628406,0.16617807,96832.0,96831.0,0.00465945]
[1738883628785,0.16617807,96832.0,96831.0,0.00365945]
[1738883629206,0.01127107,96832.0,96831.0,0.00565945]
[1738883630474,0.00192455,96834.0,96831.0,0.00565945]
[1738883630671,0.0106329,96832.0,96831.0,0.00565945]
[1738883630832,0.00192455,96834.0,96831.0,0.00565945]
[1738883631236,0.01063354,96833.0,96831.0,0.00465945]
[1738883631736,0.01063354,96833.0,96831.0,0.00265945]
[1738883631936,0.00022428,96838.0,96831.0,0.00265945]
[1738883632136,0.01062906,96832.0,96831.0,0.00465945]
[1738883632335,0.00022428,96838.0,96831.0,0.00265945]
[1738883632563,0.01062906,96832.0,96831.0,0.00265945]
[1738883632720,0.00022428,96838.0,96831.0,0.00465945]
[1738883632918,0.01062906,96832.0,96831.0,0.00265945]
[1738883633163,0.00022428,96838.0,96831.0,0.00265945]
[1738883633361,0.00022428,96838.0,96831.0,0.00465945]
[1738883633517,0.01063225,96837.0,96831.0,0.00365945]
[1738883633930,0.01063225,96837.0,96831.0,0.00265945]
[1738883634395,0.01063225,96837.0,96831.0,0.00365945]
[1738883635571,0.16553125,96837.0,96831.0,0.00265945]
[1738883635779,0.01063225,96837.0,96831.0,0.00265945]
[1738883635981,0.154907,96832.0,96831.0,0.00365945]
[1738883636351,0.16554054,96832.0,96831.0,0.00365945]
[1738883636809,0.16554054,96832.0,96831.0,0.00265945]
[1738883637222,0.16554054,96832.0,96831.0,0.00465945]
[1738883637353,0.16554054,96832.0,96831.0,0.00565945]
[1738883640000,0.154907,96832.0,96831.0,0.00565945]
[1738883640206,0.16554646,96832.0,96831.0,0.00565945]
[1738883643263,0.16554646,96832.0,96831.0,0.00465945]
[1738883643400,0.16554646,96832.0,96831.0,0.00265945]
[1738883643601,0.16654646,96832.0,96831.0,0.00265945]
[1738883643821,0.16954646,96832.0,96831.0,0.00265945]
[1738883644402,0.16854646,96832.0,96831.0,0.00265945]
[1738883644615,0.17054646,96832.0,96831.0,0.00265945]
[1738883645217,0.16554646,96832.0,96831.0,0.00265945]
[1738883645623,0.17054646,96832.0,96831.0,0.00265945]
[1738883645821,0.16554646,96832.0,96831.0,0.00265945]
[1738883646293,0.16954646,96832.0,96831.0,0.00265945]
[1738883646675,0.17154646,96832.0,96831.0,0.00265945]
[1738883647183,0.16954646,96832.0,96831.0,0.00265945]
[1738883647359,0.27405011,96832.0,96831.0,0.00265945]
[1738883647560,0.42405011,96832.0,96831.0,0.00265945]
[1738883649878,0.154939,96812.0,96807.0,0.07885731]
[1738883650083,0.12911584,96830.0,96807.0,0.07885731]
[1738883650333,0.154945,96808.0,96801.0,0.0466]
[1738883650506,0.154947,96807.0,96801.0,0.0466]
[1738883650731,0.16554693,96807.0,96806.0,0.01150743]
[1738883650914,0.16554693,96807.0,96801.0,0.0466]
[1738883650915,0.154952,96804.0,96801.0,0.0466]
[1738883651276,0.16555001,96804.0,96801.0,0.0466]
[1738883651477,0.16555001,96804.0,96790.0,0.04992428]
[1738883651890,0.16555001,96804.0,96793.0,0.01194672]
[1738883652097,0.16555001,96804.0,96790.0,0.04992428]
[1738883652345,0.16555001,96804.0,96803.0,0.00222428]
[1738883652543,0.50025366,96804.0,96803.0,0.00222428]
[1738883652742,0.50025366,96804.0,96803.0,0.00022428]
[1738883653171,0.54535366,96804.0,96803.0,0.00022428]
[1738883653565,0.58875012,96804.0,96803.0,0.00022428]
[1738883653768,0.60875012,96804.0,96803.0,0.00022428]
[1738883654304,0.61075012,96804.0,96803.0,0.00022428]
[1738883654510,0.60975012,96804.0,96803.0,0.00022428]
[1738883654707,0.304973,96791.0,96790.0,0.00022428]
[1738883654914,0.304973,96791.0,96778.0,0.06434274]
[1738883654915,0.154992,96779.0,96778.0,0.06434274]
[1738883655373,0.155006,96770.0,96769.0,0.00022407]
[1738883655977,0.16557797,96770.0,96769.0,0.00036219]
[1738883657983,0.16557797,96770.0,96769.0,0.00136219]
[1738883658390,0.16557797,96770.0,96769.0,0.00036219]
[1738883658589,0.16957797,96770.0,96769.0,0.00036219]
[1738883658901,0.16557797,96770.0,96769.0,0.00036219]
[1738883659318,0.16957797,96770.0,96769.0,0.00036219]
[1738883659540,0.16557797,96770.0,96769.0,0.00136219]
[1738883659830,0.16857797,96770.0,96769.0,0.00136219]
[1738883660027,0.16857797,96770.0,96769.0,0.00036219]
[1738883660304,0.01357197,96770.0,96769.0,0.00036219]
[1738883660526,0.16857797,96770.0,96769.0,0.00036219]
[1738883660730,0.16957797,96770.0,96769.0,0.00036219]
[1738883661489,0.16857797,96770.0,96769.0,0.00036219]
[1738883661666,0.16557797,96770.0,96769.0,0.00036219]
[1738883661872,0.16757797,96770.0,96769.0,0.00036219]
[1738883662183,0.16557797,96770.0,96769.0,0.00036219]
[1738883662527,0.16857797,96770.0,96769.0,0.00036219]
[1738883662975,0.17057797,96770.0,96769.0,0.00036219]
[1738883663364,0.16557797,96770.0,96769.0,0.00036219]
[1738883663562,0.16957797,96770.0,96769.0,0.00036219]
[1738883664380,0.16857797,96770.0,96769.0,0.00036219]
[1738883664597,0.16957797,96770.0,96769.0,0.00036219]
[1738883664800,0.16657797,96770.0,96769.0,0.00036219]
[1738883664999,0.16857797,96770.0,96769.0,0.00036219]
[1738883665362,0.16657797,96770.0,96769.0,0.00036219]
[1738883665571,0.16857797,96770.0,96769.0,0.00036219]
[1738883665978,0.16757797,96770.0,96769.0,0.00036219]
[1738883666234,0.16857797,96770.0,96769.0,0.00036219]
[1738883666531,0.16657797,96770.0,96769.0,0.00036219]
[1738883666738,0.16857797,96770.0,96769.0,0.00036219]
[1738883667140,0.16957797,96770.0,96769.0,0.00036219]
[1738883667342,0.42208162,96770.0,96769.0,0.00036219]
[1738883667763,0.42108162,96770.0,96769.0,0.00036219]
[1738883667934,0.48908162,96770.0,96769.0,0.00036219]
[1738883668386,0.49108162,96770.0,96769.0,0.00036219]
[1738883668591,0.49908162,96770.0,96769.0,0.00036219]
[1738883668762,0.60523882,96770.0,96769.0,0.00036219]
[1738883669108,0.60623882,96770.0,96769.0,0.00036219]
[1738883669383,0.60723882,96770.0,96769.0,0.00036219]
[1738883669603,0.62817504,96770.0,96769.0,0.00036219]
[1738883669825,0.61917504,96770.0,96769.0,0.00036219]
[1738883670037,0.155043,96747.0,96746.0,0.06503611]
[1738883670166,0.25754665,96747.0,96746.0,0.06503611]
[1738883670375,0.26814489,96747.0,96746.0,0.00013813]
[1738883670979,0.28108111,96747.0,96746.0,0.00013813]
[1738883672250,0.28508111,96747.0,96746.0,0.00013813]
[1738883672637,0.28608111,96747.0,96746.0,0.00013813]
[1738883673022,0.02853446,96747.0,96746.0,0.00013813]
[1738883673813,0.02753446,96747.0,96746.0,0.00013813]
[1738883674277,0.02853446,96747.0,96746.0,0.00013813]
[1738883674724,0.35963811,96747.0,96746.0,0.00013813]
[1738883674923,0.40623811,96747.0,96746.0,0.00013813]
[1738883675153,0.40623811,96747.0,96709.0,0.0814]
[1738883675154,0.155093,96716.0,96709.0,0.0631322]
[1738883675339,0.155093,96716.0,96712.0,0.08301166]
[1738883675480,0.01056639,96715.0,96712.0,0.08301166]
[1738883675692,0.155091,96718.0,96709.0,0.07768198]
[1738883675963,0.00189681,96712.0,96711.0,0.155101]
[1738883676107,0.00189681,96712.0,96711.0,0.20533487]
[1738883676308,0.00189681,96712.0,96711.0,0.204301]
[1738883676511,0.00198693,96712.0,96711.0,0.20533486]
[1738883677478,9.012e-05,96712.0,96711.0,0.207301]
[1738883678011,9.012e-05,96712.0,96711.0,0.38880465]
[1738883678613,9.012e-05,96712.0,96711.0,0.38580465]
[1738883678852,0.00109012,96712.0,96711.0,0.38580465]
[1738883679011,9.012e-05,96712.0,96711.0,0.38780465]
[1738883679434,0.00109012,96712.0,96711.0,0.38580465]
[1738883679854,0.00109012,96712.0,96711.0,0.38980465]
[1738883681683,9.012e-05,96712.0,96711.0,0.38980465]
[1738883682101,0.00109012,96712.0,96711.0,0.38980465]
[1738883682477,0.00109012,96712.0,96711.0,0.38580465]
[1738883682644,0.00109012,96712.0,96711.0,0.38880465]
[1738883685684,0.00109012,96712.0,96711.0,0.4209337]
[1738883686151,0.00109012,96712.0,96711.0,0.38880465]
[1738883686294,0.00109012,96712.0,96711.0,0.42093528]
[1738883688952,0.00109012,96712.0,96711.0,0.42104218]
[1738883689152,9.012e-05,96712.0,96711.0,0.41804218]
[1738883689565,0.00109012,96712.0,96711.0,0.42104218]
[1738883689966,0.01402682,96712.0,96711.0,0.41804218]
[1738883690384,0.01402682,96712.0,96711.0,0.42004218]
[1738883690744,0.01302682,96712.0,96711.0,0.41804218]
[1738883690948,9.012e-05,96712.0,96711.0,0.41804218]
[1738883691151,0.00109012,96712.0,96711.0,0.42004218]
[1738883691350,9.012e-05,96712.0,96711.0,0.42004218]
[1738883691552,0.00109012,96712.0,96711.0,0.42004218]
[1738883692167,0.00209012,96712.0,96711.0,0.42004218]
[1738883692616,0.00209012,96712.0,96711.0,0.41804218]
[1738883692816,0.00209012,96712.0,96711.0,0.42104218]
[1738883693172,0.00209012,96712.0,96711.0,0.26594118]
[1738883693395,0.00209012,96712.0,96711.0,0.0493069]
[1738883693609,0.00209012,96712.0,96711.0,0.0523069]
[1738883694214,0.01265331,96712.0,96711.0,0.0523069]
[1738883694411,0.00209012,96712.0,96711.0,0.0493069]
[1738883694615,0.01065331,96712.0,96711.0,0.0493069]
[1738883694816,9.012e-05,96712.0,96711.0,0.0493069]
[1738883695592,9.012e-05,96712.0,96711.0,0.2044079]
[1738883696246,9.012e-05,96712.0,96711.0,0.2054079]
[1738883696827,9.012e-05,96712.0,96711.0,0.3391315]
[1738883697032,9.012e-05,96712.0,96711.0,0.3401315]
[1738883697250,9.012e-05,96712.0,96711.0,0.4186315]
[1738883697466,9.012e-05,96712.0,96711.0,0.4176315]
[1738883698970,9.012e-05,96712.0,96711.0,0.4196315]
[1738883699469,0.00109012,96712.0,96711.0,0.41922084]
[1738883700645,0.00131483,96712.0,96711.0,0.41922084]
[1738883709033,0.00131483,96712.0,96711.0,0.65398058]
[1738883709244,0.09229521,96747.0,96711.0,0.65398058]
[1738883709245,0.09229521,96747.0,96746.0,0.155045]
[1738883709446,0.10287043,96747.0,96746.0,0.155045]
[1738883709649,0.10287043,96747.0,96746.0,0.3386822]
[1738883709867,0.09229521,96747.0,96746.0,0.36984262]
[1738883710470,0.09229521,96747.0,96746.0,0.10250365]
[1738883710690,0.0002245,96747.0,96745.0,0.155046]
[1738883711121,0.01059171,96746.0,96745.0,0.155046]
[1738883711504,0.0002245,96747.0,96745.0,0.155046]
[1738883711808,0.0002245,96747.0,96745.0,0.16984715]
[1738883711809,0.0012245,96747.0,96745.0,0.16984715]
[1738883712007,0.0002245,96747.0,96745.0,0.16984715]
[1738883712211,0.0002245,96747.0,96746.0,0.002]
[1738883712781,0.1552675,96747.0,96745.0,0.01480115]
[1738883712983,0.1552675,96747.0,96745.0,0.01580115]
[1738883713189,0.1552675,96747.0,96745.0,0.001]
[1738883713543,0.1552675,96747.0,96733.0,0.155064]
[1738883713544,0.0002245,96747.0,96726.0,0.0452]
[1738883713795,0.206743,96738.0,96733.0,0.00013834]
[1738883713999,0.155064,96734.0,96733.0,0.00013834]
[1738883714343,0.25756765,96734.0,96733.0,0.00013834]
[1738883715107,0.155101,96711.0,96703.0,0.155113]
[1738883715332,0.155101,96711.0,96706.0,0.00013836]
[1738883715482,0.1551,96712.0,96706.0,0.00013836]
[1738883715686,0.155103,96710.0,96706.0,0.00013836]
[1738883715886,0.155107,96707.0,96706.0,0.00013836]
[1738883716126,0.206805,96710.0,96706.0,0.00013836]
[1738883716298,0.155105,96709.0,96706.0,0.00013836]
[1738883716893,0.12911584,96720.0,96706.0,0.00013836]
[1738883717141,0.15509,96719.0,96710.0,0.155102]
[1738883717347,0.155091,96718.0,96710.0,0.155102]
[1738883717795,0.155105,96709.0,96706.0,0.00013836]
[1738883718006,0.155107,96707.0,96706.0,0.00313836]
[1738883718213,0.155107,96707.0,96706.0,0.00013836]
[1738883718633,0.155107,96707.0,96706.0,0.00113836]
[1738883719520,0.25761065,96707.0,96706.0,0.00113836]
[1738883719762,0.25761065,96707.0,96706.0,0.00413836]
[1738883720064,0.10250365,96707.0,96700.0,1.63513836]
[1738883720251,0.155117,96701.0,96700.0,1.63559984]
[1738883721786,0.156117,96701.0,96700.0,1.63559984]
[1738883721914,0.25862065,96701.0,96700.0,1.63559984]
[1738883723613,0.25862065,96701.0,96700.0,1.63570684]
[1738883725066,0.25862065,96701.0,96700.0,1.61670684]
[1738883730016,0.25862065,96701.0,96700.0,1.59770684]
[1738883734944,0.25862065,96701.0,96700.0,1.57870684]
[1738883736907,0.25884536,96701.0,96700.0,1.57870684]
[1738883740039,0.25884536,96701.0,96700.0,1.55970684]
[1738883743480,0.25784536,96701.0,96700.0,1.55970684]
[1738883743681,0.26084536,96701.0,96700.0,1.55970684]
[1738883743911,0.26884536,96701.0,96700.0,1.55970684]
[1738883744119,0.26584536,96701.0,96700.0,1.55970684]
[1738883744492,0.26784536,96701.0,96700.0,1.55970684]
[1738883745103,0.25984536,96701.0,96700.0,1.54070684]
[1738883745255,0.26684536,96701.0,96700.0,1.54070684]
[1738883746116,0.25984536,96701.0,96700.0,1.54070684]
[1738883746316,0.26484536,96701.0,96700.0,1.54070684]
[1738883748306,0.16234171,96701.0,96700.0,1.54070684]
[1738883748634,0.00722471,96701.0,96700.0,1.69582484]
[1738883749461,0.00522471,96701.0,96700.0,1.69582484]
[1738883749662,0.00022471,96701.0,96700.0,1.69582484]
[1738883749863,0.00022471,96701.0,96700.0,1.69682484]
[1738883750078,0.15534171,96701.0,96700.0,1.52270684]
[1738883750286,0.15534171,96701.0,96700.0,1.52170684]
[1738883750594,0.15534171,96701.0,96700.0,1.52270684]
[1738883751162,0.15534171,96701.0,96700.0,1.52170684]
[1738883752099,0.25784536,96701.0,96700.0,1.52270684]
[1738883752509,0.40784536,96701.0,96700.0,1.52170684]
[1738883752865,0.40884536,96701.0,96700.0,1.52170684]
[1738883755056,0.40884536,96701.0,96700.0,1.50270684]
[1738883759158,0.40784536,96701.0,96700.0,1.50270684]
[1738883759367,0.40984536,96701.0,96700.0,1.50270684]
[1738883759602,0.41684536,96701.0,96700.0,1.50270684]
[1738883759812,0.40784536,96701.0,96700.0,1.50270684]
[1738883760020,0.41684536,96701.0,96700.0,1.48370684]
[1738883760263,0.41984536,96701.0,96700.0,1.48370684]
[1738883760501,0.41684536,96701.0,96700.0,1.48370684]
[1738883761447,0.00922471,96701.0,96700.0,1.48370684]
[1738883761683,0.17234171,96701.0,96700.0,1.48370684]
[1738883761924,0.15834171,96701.0,96700.0,1.48370684]
[1738883762162,0.16634171,96701.0,96700.0,1.48370684]
[1738883762398,0.16334171,96701.0,96700.0,1.48370684]
[1738883762601,0.15534171,96701.0,96700.0,1.48370684]
[1738883762859,0.16134171,96701.0,96700.0,1.48370684]
[1738883763262,0.00622471,96701.0,96700.0,1.48370684]
[1738883763948,0.00622471,96701.0,96700.0,1.63882484]
[1738883764970,0.00622471,96701.0,96700.0,1.61982484]
[1738883765393,0.00022471,96701.0,96700.0,1.61982484]
[1738883765834,0.00022471,96701.0,96700.0,1.62082484]
[1738883766050,0.00022471,96701.0,96700.0,1.46570684]
[1738883766265,0.00022471,96701.0,96700.0,1.46470684]
[1738883766499,0.00022471,96701.0,96700.0,1.46570684]
[1738883766957,0.15534171,96701.0,96700.0,1.46570684]
[1738883768055,0.15534171,96701.0,96700.0,1.46670684]
[1738883768280,0.15534171,96701.0,96700.0,1.46570684]
[1738883768503,0.15534171,96701.0,96700.0,1.46470684]
[1738883768726,0.15634171,96701.0,96700.0,1.46570684]
[1738883769169,0.15634171,96701.0,96700.0,1.46470684]
[1738883770055,0.15634171,96701.0,96700.0,1.44570684]
[1738883772381,0.16629119,96701.0,96700.0,1.44570684]
[1738883772622,0.26879484,96701.0,96700.0,1.44570684]
[1738883775058,0.26879484,96701.0,96700.0,1.42670684]
[1738883775259,0.16629119,96701.0,96700.0,1.42670684]
[1738883776085,0.01117419,96701.0,96700.0,1.42670684]
[1738883776373,0.00122471,96701.0,96700.0,1.42670684]
[1738883776781,0.01117665,96701.0,96700.0,1.42670684]
[1738883777047,0.00122471,96701.0,96700.0,1.42670684]
[1738883777227,0.16529365,96701.0,96700.0,1.42670684]
[1738883777432,0.15534171,96701.0,96700.0,1.42670684]
[1738883777631,0.16529301,96701.0,96700.0,1.42670684]
[1738883778714,0.26779666,96701.0,96700.0,1.42670684]
[1738883778894,0.16529301,96701.0,96700.0,1.42670684]
[1738883779938,0.16529301,96701.0,96700.0,1.40770684]
[1738883781150,0.01017601,96701.0,96700.0,1.40770684]
[1738883781327,0.00122471,96701.0,96700.0,1.40770684]
[1738883781727,0.00122471,96701.0,96700.0,1.68962484]
[1738883782232,0.00022471,96701.0,96700.0,1.68962484]
[1738883782751,0.00022471,96701.0,96700.0,1.70342981]
[1738883782945,0.00022471,96701.0,96700.0,1.6805482]
[1738883783214,0.00122471,96701.0,96700.0,1.6805482]
[1738883783365,0.00122471,96701.0,96700.0,1.54193433]
[1738883784375,0.00022471,96701.0,96700.0,1.54193433]
[1738883784576,0.00122471,96701.0,96700.0,1.54193433]
[1738883784989,0.00122471,96701.0,96700.0,1.52293433]
[1738883785183,0.00122471,96701.0,96700.0,1.52493433]
[1738883786890,0.00122471,96701.0,96700.0,1.62743798]
[1738883788081,0.00122471,96701.0,96700.0,1.52493433]
[1738883788897,0.00122471,96701.0,96700.0,1.29011633]
[1738883789099,0.15634171,96701.0,96700.0,1.24101633]
[1738883789514,0.15534171,96701.0,96700.0,1.24201633]
[1738883789864,0.16474818,96701.0,96700.0,1.24201633]
[1738883790067,0.00963118,96701.0,96700.0,1.24201633]
[1738883791057,0.00022471,96701.0,96700.0,1.24201633]
[1738883791256,0.00022471,96701.0,96700.0,1.24101633]
[1738883791665,0.00022471,96701.0,96700.0,1.39613433]
[1738883792769,0.00022471,96701.0,96700.0,1.39713433]
[1738883792969,0.00022471,96701.0,96700.0,1.24201633]
[1738883793160,0.15534171,96701.0,96700.0,1.24101633]
[1738883793364,0.15534171,96701.0,96700.0,1.24201633]
[1738883793644,0.00022471,96701.0,96700.0,1.39713433]
[1738883794313,0.00022471,96701.0,96700.0,1.57683798]
[1738883794783,0.00022471,96701.0,96700.0,1.62453798]
[1738883795209,0.00022471,96701.0,96700.0,1.62353798]
[1738883796206,0.00022471,96701.0,96700.0,1.62453798]
[1738883801799,0.00022471,96701.0,96700.0,1.52203433]
[1738883804185,0.00022471,96701.0,96700.0,1.62453798]
[1738883804399,0.00022471,96701.0,96700.0,1.77453798]
[1738883804603,0.00022471,96701.0,96700.0,2.09863798]
[1738883805039,0.00022471,96701.0,96700.0,2.13076609]
[1738883805442,0.00022471,96701.0,96700.0,2.09863798]
[1738883805623,0.00022471,96701.0,96700.0,2.20014163]
[1738883805870,0.00122471,96701.0,96700.0,2.09963798]
[1738883810020,0.00122471,96701.0,96700.0,2.131767]
[1738883815743,0.00022471,96718.0,96717.0,0.155091]
[1738883815969,0.0002245,96747.0,96718.0,0.15]
[1738883816185,0.0002245,96747.0,96746.0,0.155045]
[1738883817165,0.0002245,96747.0,96744.0,0.206731]
[1738883817166,0.00913697,96747.0,96744.0,0.361778]
[1738883817364,0.00027062,96747.0,96746.0,0.155045]
[1738883817571,0.00027062,96747.0,96746.0,0.15607855]
[1738883817798,0.00027062,96747.0,96746.0,0.155045]
[1738883818126,0.00327062,96747.0,96746.0,0.155045]
[1738883819378,0.00327062,96747.0,96739.0,0.0497]
[1738883819700,0.00327062,96747.0,96729.0,0.02083052]
[1738883819907,0.15505,96743.0,96736.0,0.15506]
[1738883820283,0.15505,96743.0,96737.0,0.155059]
[1738883820771,0.00027062,96747.0,96734.0,0.206751]
[1738883820991,0.155046,96745.0,96736.0,0.206748]
[1738883821176,0.206727,96746.0,96736.0,0.206748]
[1738883821364,0.155047,96745.0,96739.0,0.155056]
[1738883821934,0.00027062,96747.0,96735.0,0.10250365]
[1738883822136,0.00027062,96747.0,96743.0,0.155049]
[1738883822351,0.001,96746.0,96743.0,0.155049]
[1738883822914,0.003,96745.0,96743.0,0.155049]
[1738883823316,0.003,96745.0,96744.0,0.155048]
[1738883823843,0.003,96745.0,96744.0,0.3389852]
[1738883824045,0.00127062,96747.0,96746.0,0.155045]
[1738883824252,0.00227062,96747.0,96746.0,0.25858208]
[1738883824452,0.00127062,96747.0,96746.0,0.30454865]
[1738883824652,0.00027062,96747.0,96746.0,0.30454865]
[1738883825587,0.00027062,96747.0,96746.0,0.30854865]
[1738883826231,0.00027062,96747.0,96746.0,0.30954865]
[1738883826451,0.00027062,96747.0,96746.0,0.10750365]
[1738883827170,0.00027062,96747.0,96746.0,0.10853712]
[1738883827376,0.00027062,96747.0,96746.0,0.12064818]
[1738883827635,0.00027062,96747.0,96746.0,0.11564818]
[1738883828065,0.00027062,96747.0,96746.0,0.11764818]
[1738883828510,0.00027062,96747.0,96746.0,0.01514453]
[1738883829426,0.00027062,96747.0,96746.0,0.01414453]
[1738883829642,0.00027062,96747.0,96746.0,0.16918953]
[1738883829916,0.00027062,96747.0,96746.0,0.39291854]
[1738883830102,0.00027062,96747.0,96746.0,0.39188503]
[1738883830501,0.00027062,96747.0,96746.0,0.35429318]
[1738883830647,0.00027062,96747.0,96746.0,0.35329318]
[1738883830844,0.00027062,96747.0,96746.0,0.35429318]
[1738883831258,0.00027062,96747.0,96746.0,0.35329318]
[1738883831466,0.00027062,96747.0,96746.0,0.35629318]
[1738883831659,0.00027062,96747.0,96746.0,0.35729318]
[1738883831888,0.00027062,96747.0,96746.0,0.35429318]
[1738883832122,0.00027062,96747.0,96746.0,0.35729318]
[1738883832331,0.00027062,96747.0,96746.0,0.35629318]
[1738883832616,0.00027062,96747.0,96746.0,0.35429318]
[1738883833941,0.00027062,96747.0,96746.0,0.35329318]
[1738883834167,0.00027062,96747.0,96746.0,0.35429318]
[1738883834298,0.00027062,96747.0,96746.0,0.37752291]
[1738883834499,0.00027062,96747.0,96746.0,0.37352291]
[1738883834894,0.00027062,96747.0,96746.0,0.37552291]
[1738883835170,0.00027062,96747.0,96746.0,0.37352291]
[1738883835549,0.00027062,96747.0,96746.0,0.29492291]
[1738883836109,0.15531362,96747.0,96746.0,0.03737426]
[1738883836871,0.15531362,96747.0,96746.0,0.01814453]
[1738883837002,0.15531362,96747.0,96746.0,0.01714453]
[1738883837213,0.15531362,96747.0,96746.0,0.01814453]
[1738883837418,0.00027062,96747.0,96746.0,0.01414453]
[1738883837628,0.00027062,96747.0,96746.0,0.01314453]
[1738883837831,0.00027062,96747.0,96746.0,0.003]
[1738883838118,0.00027062,96747.0,96743.0,0.155049]
[1738883838326,0.00027062,96747.0,96746.0,0.155045]
[1738883839071,0.00027062,96747.0,96746.0,0.1560785]
[1738883840578,0.00027062,96747.0,96746.0,0.17534323]
[1738883840906,0.00027062,96747.0,96746.0,0.17934323]
[1738883841087,0.00027062,96747.0,96746.0,0.18034323]
[1738883841286,0.00027062,96747.0,96746.0,0.25534323]
[1738883841506,0.00027062,96747.0,96746.0,0.25430973]
[1738883841826,0.00027062,96747.0,96746.0,0.72731338]
[1738883842037,0.00027062,96747.0,96746.0,0.90031338]
[1738883843103,0.00027062,96747.0,96746.0,0.87731338]
[1738883847375,0.00027062,96747.0,96746.0,0.60086838]
[1738883847557,0.00027062,96747.0,96746.0,0.75591338]
[1738883848992,0.00027062,96747.0,96746.0,0.75191338]
[1738883849220,0.00027062,96747.0,96746.0,0.75091338]
[1738883849495,0.00027062,96747.0,96746.0,0.73164865]
[1738883849680,0.00027062,96747.0,96746.0,0.73264865]
[1738883850094,0.00027062,96747.0,96746.0,0.73164865]
[1738883850440,0.00027062,96747.0,96746.0,0.73564865]
[1738883850667,0.00027062,96747.0,96746.0,0.3251]
[1738883850851,0.15531362,96747.0,96746.0,0.3251]
[1738883851149,0.15531362,96747.0,96746.0,0.3291]
[1738883851378,0.00027062,96747.0,96746.0,0.3291]
[1738883851786,0.00027062,96747.0,96746.0,0.3251]
[1738883852138,0.00027062,96747.0,96746.0,0.004]
[1738883852567,0.15531362,96747.0,96746.0,0.003]
[1738883852819,0.15531362,96747.0,96746.0,0.004]
[1738883853261,0.15531362,96747.0,96746.0,0.005873]
[1738883853463,0.15531362,96747.0,96746.0,0.002873]
[1738883853650,0.15531362,96747.0,96746.0,0.003873]
[1738883853855,0.15531362,96747.0,96746.0,0.005873]
[1738883854055,0.15531362,96747.0,96746.0,0.002873]
[1738883854268,0.15531362,96747.0,96746.0,0.003873]
[1738883854401,0.15531362,96747.0,96746.0,0.005873]
[1738883855489,0.20461362,96747.0,96746.0,0.005873]
[1738883855660,0.20461362,96747.0,96746.0,0.004873]
[1738883856963,0.20461362,96747.0,96746.0,0.002873]
[1738883857869,0.20561362,96747.0,96746.0,0.002873]
[1738883859757,0.15631362,96747.0,96746.0,0.002873]
[1738883860705,0.15531362,96747.0,96746.0,0.002873]
[1738883861566,0.15631362,96747.0,96746.0,0.002873]
[1738883862325,0.15531362,96747.0,96746.0,0.002873]
[1738883862675,0.15631362,96747.0,96746.0,0.002873]
[1738883864438,0.15531362,96747.0,96746.0,0.002873]
[1738883864788,0.15831362,96747.0,96746.0,0.002873]
[1738883865049,0.15531362,96747.0,96746.0,0.002873]
[1738883865476,0.15731362,96747.0,96746.0,0.002873]
[1738883870183,0.34171727,96747.0,96746.0,0.002873]
[1738883871504,0.33971727,96747.0,96746.0,0.002873]
[1738883871880,0.34171727,96747.0,96746.0,0.002873]
[1738883872636,0.33971727,96747.0,96746.0,0.002873]
[1738883873044,0.34271727,96747.0,96746.0,0.002873]